[Event "Late-Titled-Tuesday-Blitz-May-07-2024"]
[Site "Chess.com"]
[Date "2024.05.07"]
[Round "3"]
[White "KingCyber19"]
[Black "Pachonpower"]
[Result "0-1"]
[WhiteElo "2578"]
[BlackElo "2383"]
[TimeControl "180+1"]
[EndTime "14:28:42 PDT"]
[Termination "Pachonpower won by resignation"]

1. d4 {[%clk 0:03:00.9]} 1... e6 {[%clk 0:02:46.3]} 2. c4 {[%clk 0:03:00.9]}
2... f5 {[%clk 0:02:46.1]} 3. g3 {[%clk 0:02:59.8]} 3... Nf6 {[%clk 0:02:39.7]}
4. Bg2 {[%clk 0:02:59.7]} 4... c6 {[%clk 0:02:40.3]} 5. Nc3 {[%clk 0:02:59]}
5... d5 {[%clk 0:02:40.5]} 6. Nh3 {[%clk 0:02:56.2]} 6... Bb4 {[%clk 0:02:39.6]}
7. O-O {[%clk 0:02:51.8]} 7... O-O {[%clk 0:02:39]} 8. Nf4 {[%clk 0:02:50.5]}
8... Ne4 {[%clk 0:02:37.6]} 9. Qb3 {[%clk 0:02:41.9]} 9... Bxc3 {[%clk
0:02:35.3]} 10. bxc3 {[%clk 0:02:41.2]} 10... Qb6 {[%clk 0:02:24.2]} 11. cxd5
{[%clk 0:02:22.3]} 11... Qxb3 {[%clk 0:02:22.9]} 12. axb3 {[%clk 0:02:19.9]}
12... exd5 {[%clk 0:02:15.5]} 13. c4 {[%clk 0:02:13.5]} 13... dxc4 {[%clk
0:02:15.6]} 14. bxc4 {[%clk 0:02:03.6]} 14... Rd8 {[%clk 0:02:04.9]} 15. e3
{[%clk 0:01:45.6]} 15... Na6 {[%clk 0:02:03.4]} 16. Nd3 {[%clk 0:01:41.5]} 16...
Be6 {[%clk 0:02:01.3]} 17. Ne5 {[%clk 0:01:36.6]} 17... Nb4 {[%clk 0:01:58.4]}
18. Rb1 {[%clk 0:01:26.6]} 18... a5 {[%clk 0:01:56.7]} 19. Bxe4 {[%clk 0:00:49]}
19... fxe4 {[%clk 0:01:52.8]} 20. Bd2 {[%clk 0:00:49.9]} 20... Nd3 {[%clk
0:01:45]} 21. Nxd3 {[%clk 0:00:45.6]} 21... exd3 {[%clk 0:01:45.9]} 22. Rfc1
{[%clk 0:00:46]} 22... Rd7 {[%clk 0:01:41.6]} 23. f3 {[%clk 0:00:33.9]} 23... a4
{[%clk 0:01:40.1]} 24. Kf2 {[%clk 0:00:26]} 24... a3 {[%clk 0:01:38]} 25. Ra1
{[%clk 0:00:24]} 25... Ra4 {[%clk 0:01:33.8]} 26. c5 {[%clk 0:00:21.3]} 26...
Rd8 {[%clk 0:01:28.6]} 27. Bc3 {[%clk 0:00:20.4]} 27... Rda8 {[%clk 0:01:24.2]}
28. e4 {[%clk 0:00:19.2]} 28... Bc4 {[%clk 0:01:23.3]} 29. Ke3 {[%clk
0:00:19.4]} 29... Bb5 {[%clk 0:01:23.4]} 30. Kd2 {[%clk 0:00:17.5]} 30... Rf8
{[%clk 0:01:11.3]} 31. f4 {[%clk 0:00:16.7]} 31... g5 {[%clk 0:01:11.4]} 32. Rf1
{[%clk 0:00:15]} 32... Re8 {[%clk 0:01:07.3]} 33. Rae1 {[%clk 0:00:11.4]} 33...
g4 {[%clk 0:01:05.4]} 34. f5 {[%clk 0:00:11.7]} 34... a2 {[%clk 0:01:03.7]} 35.
f6 {[%clk 0:00:11.5]} 35... Kf7 {[%clk 0:01:03.7]} 36. e5 {[%clk 0:00:11.3]}
36... Bc4 {[%clk 0:01:02.2]} 37. Ra1 {[%clk 0:00:09.4]} 37... Bd5 {[%clk
0:00:47.5]} 38. Rf4 {[%clk 0:00:08.1]} 38... h5 {[%clk 0:00:46.3]} 39. Rf5
{[%clk 0:00:08.3]} 39... Kg6 {[%clk 0:00:46.6]} 40. Rf4 {[%clk 0:00:04.4]} 40...
Rea8 {[%clk 0:00:44.8]} 41. Kxd3 {[%clk 0:00:04.4]} 41... Bc4+ {[%clk
0:00:41.5]} 42. Kc2 {[%clk 0:00:03.8]} 42... Bd5 {[%clk 0:00:40.8]} 43. Rf2
{[%clk 0:00:03.8]} 43... Rc4 {[%clk 0:00:39.8]} 44. Kb2 {[%clk 0:00:03.7]} 44...
Raa4 {[%clk 0:00:36.2]} 45. f7 {[%clk 0:00:03.2]} 45... Bxf7 {[%clk 0:00:35.8]}
46. Rf6+ {[%clk 0:00:03.5]} 46... Kg7 {[%clk 0:00:36.4]} 47. d5 {[%clk
0:00:04.1]} 47... Bxd5 {[%clk 0:00:33.9]} 48. Raf1 {[%clk 0:00:02.8]} 48... Rxc3
{[%clk 0:00:31.6]} 49. e6 {[%clk 0:00:01.4]} 49... Rb3+ {[%clk 0:00:29.7]} 50.
Kc2 {[%clk 0:00:01.6]} 50... a1=Q {[%clk 0:00:28.7]} 51. Rf7+ {[%clk 0:00:02]}
51... Kg6 {[%clk 0:00:28.7]} 52. R1f6+ {[%clk 0:00:02.2]} 52... Qxf6 {[%clk
0:00:28.9]} 53. Rxf6+ {[%clk 0:00:02.8]} 53... Kxf6 {[%clk 0:00:29.8]} 0-1

[Event "Late-Titled-Tuesday-Blitz-May-07-2024"]
[Site "Chess.com"]
[Date "2024.05.07"]
[Round "3"]
[White "lupta_robin"]
[Black "subham777"]
[Result "1-0"]
[WhiteElo "2669"]
[BlackElo "2461"]
[TimeControl "180+1"]
[EndTime "14:28:44 PDT"]
[Termination "lupta_robin won by checkmate"]

1. b3 {[%clk 0:03:00.9]} 1... d5 {[%clk 0:02:58.2]} 2. Bb2 {[%clk 0:03:00.3]}
2... Nf6 {[%clk 0:02:58.3]} 3. Nf3 {[%clk 0:03:00.5]} 3... e6 {[%clk 0:02:58.6]}
4. e3 {[%clk 0:03:01.2]} 4... Be7 {[%clk 0:02:58.9]} 5. c4 {[%clk 0:03:01.6]}
5... O-O {[%clk 0:02:59.4]} 6. Nc3 {[%clk 0:03:02.2]} 6... c5 {[%clk 0:02:59.2]}
7. cxd5 {[%clk 0:03:00.7]} 7... Nxd5 {[%clk 0:02:57.9]} 8. Nxd5 {[%clk
0:03:00.1]} 8... exd5 {[%clk 0:02:57.3]} 9. Be2 {[%clk 0:02:46.7]} 9... Nc6
{[%clk 0:02:56.7]} 10. O-O {[%clk 0:02:47.3]} 10... d4 {[%clk 0:02:53.3]} 11.
Re1 {[%clk 0:02:27.6]} 11... d3 {[%clk 0:02:47.4]} 12. Bf1 {[%clk 0:02:27.8]}
12... Nb4 {[%clk 0:02:48.2]} 13. Ne5 {[%clk 0:02:08.1]} 13... Bf6 {[%clk
0:02:33.2]} 14. a3 {[%clk 0:02:05.1]} 14... Nc2 {[%clk 0:02:30.5]} 15. Nxd3
{[%clk 0:02:01]} 15... Nxe1 {[%clk 0:02:27]} 16. Qxe1 {[%clk 0:01:57.8]} 16...
Bf5 {[%clk 0:02:20.5]} 17. Bxf6 {[%clk 0:01:54.5]} 17... Qxf6 {[%clk 0:02:18.7]}
18. Nxc5 {[%clk 0:01:54.7]} 18... b6 {[%clk 0:02:15.9]} 19. Na4 {[%clk
0:01:53.6]} 19... Rfe8 {[%clk 0:02:05.1]} 20. Nc3 {[%clk 0:01:49.8]} 20... Rad8
{[%clk 0:02:02.6]} 21. b4 {[%clk 0:01:39.1]} 21... Bd3 {[%clk 0:01:54]} 22. Ra2
{[%clk 0:01:02.2]} 22... Re7 {[%clk 0:01:33.8]} 23. f4 {[%clk 0:01:00]} 23...
Red7 {[%clk 0:01:29.7]} 24. g3 {[%clk 0:00:46.7]} 24... Bxf1 {[%clk 0:01:21.6]}
25. Kxf1 {[%clk 0:00:47.6]} 25... Qe6 {[%clk 0:01:10.8]} 26. Rc2 {[%clk
0:00:43.4]} 26... Qb3 {[%clk 0:01:03.9]} 27. Qc1 {[%clk 0:00:42.7]} 27... h5
{[%clk 0:00:59]} 28. Ne2 {[%clk 0:00:41.9]} 28... Qd5 {[%clk 0:00:53.3]} 29. Kf2
{[%clk 0:00:40.5]} 29... Qe4 {[%clk 0:00:38.4]} 30. Rc4 {[%clk 0:00:36.4]} 30...
Qe6 {[%clk 0:00:34.9]} 31. Nd4 {[%clk 0:00:31.4]} 31... Qg6 {[%clk 0:00:26.2]}
32. Qc2 {[%clk 0:00:28.4]} 32... Qg4 {[%clk 0:00:17.1]} 33. Qd3 {[%clk
0:00:25.9]} 33... Qh3 {[%clk 0:00:15.7]} 34. Kg1 {[%clk 0:00:25]} 34... h4
{[%clk 0:00:16.3]} 35. Qf1 {[%clk 0:00:24.4]} 35... Qg4 {[%clk 0:00:16.7]} 36.
Kg2 {[%clk 0:00:22.8]} 36... h3+ {[%clk 0:00:13.4]} 37. Kf2 {[%clk 0:00:22.7]}
37... Qh5 {[%clk 0:00:08.3]} 38. Qh1 {[%clk 0:00:18.4]} 38... Qg6 {[%clk
0:00:06.1]} 39. Qf1 {[%clk 0:00:14.6]} 39... Qh5 {[%clk 0:00:05.4]} 40. Rc3
{[%clk 0:00:12.2]} 40... Re8 {[%clk 0:00:04.8]} 41. Qe2 {[%clk 0:00:12.3]} 41...
Qd5 {[%clk 0:00:03.5]} 42. Qf3 {[%clk 0:00:12.1]} 42... Qa2 {[%clk 0:00:04.2]}
43. Rc2 {[%clk 0:00:11.7]} 43... Qb1 {[%clk 0:00:03.4]} 44. Qc6 {[%clk
0:00:11.5]} 44... Rde7 {[%clk 0:00:03.6]} 45. Nf5 {[%clk 0:00:10.7]} 45... Re6
{[%clk 0:00:03.1]} 46. Qc3 {[%clk 0:00:09.1]} 46... Qh1 {[%clk 0:00:03.1]} 47.
Qxg7# {[%clk 0:00:08.4]} 1-0

[Event "Late-Titled-Tuesday-Blitz-May-07-2024"]
[Site "Chess.com"]
[Date "2024.05.07"]
[Round "3"]
[White "Annawel"]
[Black "GianmarcoVaR"]
[Result "1-0"]
[WhiteElo "3010"]
[BlackElo "2759"]
[TimeControl "180+1"]
[EndTime "14:28:48 PDT"]
[Termination "Annawel won by resignation"]

1. e4 {[%clk 0:03:00.9]} 1... c5 {[%clk 0:02:59.9]} 2. Nf3 {[%clk 0:03:00.9]}
2... d6 {[%clk 0:03:00.4]} 3. d4 {[%clk 0:03:01.1]} 3... cxd4 {[%clk 0:03:01.3]}
4. Nxd4 {[%clk 0:03:01.9]} 4... Nf6 {[%clk 0:03:02.1]} 5. Nc3 {[%clk 0:03:02.5]}
5... a6 {[%clk 0:03:02.9]} 6. Bd3 {[%clk 0:03:01]} 6... e5 {[%clk 0:03:02.6]} 7.
Nde2 {[%clk 0:03:01.1]} 7... Be7 {[%clk 0:03:03.4]} 8. O-O {[%clk 0:02:58.3]}
8... O-O {[%clk 0:03:04.1]} 9. Ng3 {[%clk 0:02:54.6]} 9... g6 {[%clk 0:02:21.3]}
10. a4 {[%clk 0:02:41]} 10... Be6 {[%clk 0:02:20]} 11. Bh6 {[%clk 0:02:38.2]}
11... Re8 {[%clk 0:02:20.3]} 12. h3 {[%clk 0:02:38.1]} 12... Bf8 {[%clk
0:02:15.6]} 13. Qd2 {[%clk 0:02:11.8]} 13... Bg7 {[%clk 0:02:10.8]} 14. Bxg7
{[%clk 0:02:09.8]} 14... Kxg7 {[%clk 0:02:11.4]} 15. f4 {[%clk 0:01:22.7]} 15...
exf4 {[%clk 0:02:12.3]} 16. Rxf4 {[%clk 0:01:23.2]} 16... Nc6 {[%clk 0:02:12.9]}
17. Raf1 {[%clk 0:01:22.4]} 17... Nd7 {[%clk 0:02:13.2]} 18. Nf5+ {[%clk
0:01:16.5]} 18... Bxf5 {[%clk 0:00:45.9]} 19. exf5 {[%clk 0:01:17.4]} 19... g5
{[%clk 0:00:37.4]} 20. f6+ {[%clk 0:01:13.6]} 20... Kh8 {[%clk 0:00:38.1]} 21.
Rh4 {[%clk 0:01:04]} 21... Qb6+ {[%clk 0:00:17.1]} 22. Kh2 {[%clk 0:01:01.1]}
22... Qe3 {[%clk 0:00:17.4]} 23. Rxh7+ {[%clk 0:01:00.8]} 23... Kg8 {[%clk
0:00:17.4]} 24. Qxe3 {[%clk 0:00:57.3]} 24... Rxe3 {[%clk 0:00:17.4]} 25. Nd5
{[%clk 0:00:56.9]} 25... Re5 {[%clk 0:00:17.3]} 26. c4 {[%clk 0:00:17]} 26...
Rae8 {[%clk 0:00:15.9]} 27. b4 {[%clk 0:00:15.3]} 27... Rxd5 {[%clk 0:00:09.2]}
28. cxd5 {[%clk 0:00:15.5]} 28... Nxb4 {[%clk 0:00:10]} 29. Bb1 {[%clk
0:00:13.8]} 29... Re5 {[%clk 0:00:02]} 30. h4 {[%clk 0:00:10.8]} 30... g4 {[%clk
0:00:01.2]} 31. Rg7+ {[%clk 0:00:10.9]} 31... Kf8 {[%clk 0:00:01.8]} 32. Rxg4
{[%clk 0:00:10.8]} 32... Nxd5 {[%clk 0:00:02.5]} 33. Rg3 {[%clk 0:00:07.8]}
33... N5xf6 {[%clk 0:00:02.8]} 34. Bf5 {[%clk 0:00:07.5]} 34... Nc5 {[%clk
0:00:02.2]} 35. a5 {[%clk 0:00:07.3]} 35... Nh5 {[%clk 0:00:01.3]} 36. Rgf3
{[%clk 0:00:07.3]} 36... Nf6 {[%clk 0:00:01.5]} 37. Bc8 {[%clk 0:00:04.8]} 37...
Ng8 {[%clk 0:00:00.6]} 38. Rxf7+ {[%clk 0:00:05]} 38... Ke8 {[%clk 0:00:01.4]}
39. Bxb7 {[%clk 0:00:05]} 39... Ne6 {[%clk 0:00:01.6]} 40. Bc6+ {[%clk
0:00:05.1]} 40... Kd8 {[%clk 0:00:01.9]} 41. Rd7+ {[%clk 0:00:05.2]} 41... Kc8
{[%clk 0:00:02.6]} 42. Rh7 {[%clk 0:00:04.1]} 42... Rc5 {[%clk 0:00:02.1]} 43.
Bd7+ {[%clk 0:00:04.4]} 1-0

[Event "Late-Titled-Tuesday-Blitz-May-07-2024"]
[Site "Chess.com"]
[Date "2024.05.07"]
[Round "3"]
[White "Nicolik"]
[Black "Karacsonyi_Gellert"]
[Result "0-1"]
[WhiteElo "2491"]
[BlackElo "2705"]
[TimeControl "180+1"]
[EndTime "14:28:50 PDT"]
[Termination "Karacsonyi_Gellert won by checkmate"]

1. d4 {[%clk 0:03:00.9]} 1... f5 {[%clk 0:02:59.1]} 2. Nc3 {[%clk 0:03:00.7]}
2... Nf6 {[%clk 0:02:59.7]} 3. Bg5 {[%clk 0:03:01.2]} 3... d5 {[%clk 0:02:59.7]}
4. Bxf6 {[%clk 0:03:01.8]} 4... exf6 {[%clk 0:03:00]} 5. e3 {[%clk 0:03:02.4]}
5... c6 {[%clk 0:03:00.3]} 6. h4 {[%clk 0:03:02.7]} 6... Qb6 {[%clk 0:03:00.7]}
7. Rb1 {[%clk 0:03:01.4]} 7... Be6 {[%clk 0:03:01.1]} 8. Bd3 {[%clk 0:03:00.7]}
8... Nd7 {[%clk 0:03:01.4]} 9. Qf3 {[%clk 0:03:01]} 9... g6 {[%clk 0:03:01.6]}
10. Nge2 {[%clk 0:03:01.7]} 10... O-O-O {[%clk 0:03:01.2]} 11. Nf4 {[%clk
0:03:02.2]} 11... Bf7 {[%clk 0:03:01]} 12. a3 {[%clk 0:02:56]} 12... Bd6 {[%clk
0:03:00.9]} 13. g3 {[%clk 0:02:56.2]} 13... h5 {[%clk 0:02:57.4]} 14. b4 {[%clk
0:02:55.8]} 14... g5 {[%clk 0:02:57.5]} 15. hxg5 {[%clk 0:02:36.2]} 15... fxg5
{[%clk 0:02:58.4]} 16. Nxh5 {[%clk 0:02:36.7]} 16... f4 {[%clk 0:02:43.1]} 17.
g4 {[%clk 0:02:23.9]} 17... Rde8 {[%clk 0:02:26.8]} 18. Kd2 {[%clk 0:02:23.1]}
18... Bxh5 {[%clk 0:02:17.9]} 19. gxh5 {[%clk 0:02:21.3]} 19... Nf6 {[%clk
0:02:18.4]} 20. Bf5+ {[%clk 0:02:10.6]} 20... Kb8 {[%clk 0:02:17.5]} 21. Na4
{[%clk 0:02:08.9]} 21... Qa6 {[%clk 0:02:13.2]} 22. Nc5 {[%clk 0:02:06.6]} 22...
Qxa3 {[%clk 0:02:11.5]} 23. Rb3 {[%clk 0:02:05.6]} 23... Qa2 {[%clk 0:02:09.5]}
24. Rhb1 {[%clk 0:01:55.6]} 24... b6 {[%clk 0:01:40.1]} 25. R1b2 {[%clk
0:01:52.8]} 25... Qa1 {[%clk 0:01:40.1]} 26. Rb1 {[%clk 0:01:53.4]} 26... Qa2
{[%clk 0:01:40.6]} 27. e4 {[%clk 0:01:25.6]} 27... dxe4 {[%clk 0:01:36.9]} 28.
Nxe4 {[%clk 0:01:25.7]} 28... g4 {[%clk 0:01:29.6]} 29. Qd3 {[%clk 0:01:19.4]}
29... Nxe4+ {[%clk 0:01:25.4]} 30. Bxe4 {[%clk 0:01:20.3]} 30... Qa4 {[%clk
0:01:20.3]} 31. d5 {[%clk 0:01:08.3]} 31... f3 {[%clk 0:00:58.9]} 32. c4 {[%clk
0:00:51.8]} 32... Bf4+ {[%clk 0:00:55.2]} 33. Kc2 {[%clk 0:00:51.4]} 33... Be5
{[%clk 0:00:43.1]} 34. dxc6 {[%clk 0:00:38.1]} 34... Rd8 {[%clk 0:00:43.1]} 35.
Bd5 {[%clk 0:00:38]} 35... Qa2+ {[%clk 0:00:43]} 36. R1b2 {[%clk 0:00:37.6]}
36... Bxb2 {[%clk 0:00:37.8]} 37. Rxb2 {[%clk 0:00:38.5]} 37... Qa4+ {[%clk
0:00:38]} 38. Kb1 {[%clk 0:00:33.6]} 38... Rhe8 {[%clk 0:00:37.9]} 39. Qd2
{[%clk 0:00:23.1]} 39... Kc8 {[%clk 0:00:28.9]} 40. Ra2 {[%clk 0:00:17.5]} 40...
Qb3+ {[%clk 0:00:28.2]} 41. Rb2 {[%clk 0:00:18.2]} 41... Qa4 {[%clk 0:00:13.8]}
42. Ra2 {[%clk 0:00:16]} 42... Qb3+ {[%clk 0:00:06]} 43. Kc1 {[%clk 0:00:16.2]}
43... Re2 {[%clk 0:00:06.7]} 44. Qf4 {[%clk 0:00:08]} 44... Qc3+ {[%clk
0:00:04.8]} 45. Kb1 {[%clk 0:00:04.9]} 45... Re1+ {[%clk 0:00:05.7]} 46. Qc1
{[%clk 0:00:02.6]} 46... Rxc1# {[%clk 0:00:06.6]} 0-1

[Event "Late-Titled-Tuesday-Blitz-May-07-2024"]
[Site "Chess.com"]
[Date "2024.05.07"]
[Round "3"]
[White "NajdorfPlayerc5"]
[Black "StellarChess"]
[Result "0-1"]
[WhiteElo "2431"]
[BlackElo "2624"]
[TimeControl "180+1"]
[EndTime "14:28:50 PDT"]
[Termination "StellarChess won by checkmate"]

1. d4 {[%clk 0:03:00.2]} 1... Nf6 {[%clk 0:02:57.1]} 2. c4 {[%clk 0:03:00.5]}
2... e6 {[%clk 0:02:57.3]} 3. Nc3 {[%clk 0:03:00.8]} 3... Bb4 {[%clk 0:02:55.9]}
4. f3 {[%clk 0:03:00.9]} 4... Bxc3+ {[%clk 0:02:54.8]} 5. bxc3 {[%clk
0:03:00.6]} 5... d5 {[%clk 0:02:55.7]} 6. cxd5 {[%clk 0:02:59.2]} 6... exd5
{[%clk 0:02:56.6]} 7. e3 {[%clk 0:02:58.7]} 7... O-O {[%clk 0:02:55.5]} 8. Bd3
{[%clk 0:02:58.3]} 8... Re8 {[%clk 0:02:55.7]} 9. Ne2 {[%clk 0:02:57.4]} 9...
Qe7 {[%clk 0:02:54.9]} 10. g4 {[%clk 0:02:47.4]} 10... Nc6 {[%clk 0:02:22.8]}
11. Ng3 {[%clk 0:02:44.3]} 11... g6 {[%clk 0:02:03.5]} 12. h4 {[%clk 0:02:32.8]}
12... Qd6 {[%clk 0:01:56.6]} 13. Kf2 {[%clk 0:02:30.7]} 13... Nd7 {[%clk
0:01:17.2]} 14. Bd2 {[%clk 0:02:25.6]} 14... Nb6 {[%clk 0:01:16.9]} 15. h5
{[%clk 0:02:15.5]} 15... Bd7 {[%clk 0:01:14.4]} 16. hxg6 {[%clk 0:02:03.8]}
16... hxg6 {[%clk 0:01:11.3]} 17. Qg1 {[%clk 0:02:00.9]} 17... Kg7 {[%clk
0:01:03.9]} 18. Nf5+ {[%clk 0:01:45.4]} 18... Bxf5 {[%clk 0:00:48.4]} 19. gxf5
{[%clk 0:01:46.3]} 19... Rh8 {[%clk 0:00:40]} 20. fxg6 {[%clk 0:01:35.9]} 20...
Rxh1 {[%clk 0:00:27.3]} 21. Qxh1 {[%clk 0:01:30]} 21... Rh8 {[%clk 0:00:22.7]}
22. Qg1 {[%clk 0:01:18.6]} 22... fxg6 {[%clk 0:00:21]} 23. f4 {[%clk 0:01:13.8]}
23... Na5 {[%clk 0:00:16.5]} 24. Qg3 {[%clk 0:00:42.5]} 24... Nac4 {[%clk
0:00:14.8]} 25. Ke2 {[%clk 0:00:35.1]} 25... Qf6 {[%clk 0:00:10.5]} 26. Rg1
{[%clk 0:00:32.8]} 26... Rh6 {[%clk 0:00:10.6]} 27. Bc1 {[%clk 0:00:28.4]} 27...
Na4 {[%clk 0:00:09.6]} 28. Bd2 {[%clk 0:00:21.6]} 28... Nab2 {[%clk 0:00:07.4]}
29. Bc2 {[%clk 0:00:14.4]} 29... Nxd2 {[%clk 0:00:06.6]} 30. Kxd2 {[%clk
0:00:15.3]} 30... Nc4+ {[%clk 0:00:07.5]} 31. Ke2 {[%clk 0:00:14.8]} 31... Nd6
{[%clk 0:00:01]} 32. Bd3 {[%clk 0:00:12.3]} 32... Nf5 {[%clk 0:00:00.8]} 33. Qg2
{[%clk 0:00:06.6]} 33... Nh4 {[%clk 0:00:00.6]} 34. Qxd5 {[%clk 0:00:06.3]}
34... Nf5 {[%clk 0:00:01.5]} 35. Qd7+ {[%clk 0:00:06.3]} 35... Kh8 {[%clk
0:00:01.6]} 36. Qe8+ {[%clk 0:00:06.7]} 36... Kh7 {[%clk 0:00:01.8]} 37. Qd7+
{[%clk 0:00:06.4]} 37... Kh8 {[%clk 0:00:02.2]} 38. Qe8+ {[%clk 0:00:05.2]}
38... Kh7 {[%clk 0:00:02.6]} 39. Qe5 {[%clk 0:00:06.1]} 39... Rh2+ {[%clk
0:00:02.8]} 40. Ke1 {[%clk 0:00:05]} 40... Qh4+ {[%clk 0:00:03]} 41. Kd1 {[%clk
0:00:03.9]} 41... Qf2 {[%clk 0:00:03.5]} 42. Qxc7+ {[%clk 0:00:02]} 42... Kh6
{[%clk 0:00:04.1]} 43. Rxg6+ {[%clk 0:00:01.4]} 43... Kxg6 {[%clk 0:00:03.5]}
44. Qd6+ {[%clk 0:00:01.8]} 44... Kh5 {[%clk 0:00:03.6]} 45. Be2+ {[%clk
0:00:01.1]} 45... Qxe2+ {[%clk 0:00:04]} 46. Kc1 {[%clk 0:00:00.6]} 46... Qc2#
{[%clk 0:00:04.6]} 0-1

[Event "Late-Titled-Tuesday-Blitz-May-07-2024"]
[Site "Chess.com"]
[Date "2024.05.07"]
[Round "3"]
[White "Airquake"]
[Black "Nadtkins"]
[Result "1-0"]
[WhiteElo "2840"]
[BlackElo "2517"]
[TimeControl "180+1"]
[EndTime "14:28:51 PDT"]
[Termination "Airquake won by resignation"]

1. e4 {[%clk 0:03:00.9]} 1... e5 {[%clk 0:03:00.1]} 2. Nf3 {[%clk 0:03:00.9]}
2... Nc6 {[%clk 0:03:00.8]} 3. Bb5 {[%clk 0:03:01]} 3... a6 {[%clk 0:03:00.2]}
4. Ba4 {[%clk 0:03:00.4]} 4... d6 {[%clk 0:03:00.7]} 5. c3 {[%clk 0:02:58.5]}
5... Bd7 {[%clk 0:03:00.1]} 6. d4 {[%clk 0:02:57.7]} 6... g6 {[%clk 0:03:00.4]}
7. O-O {[%clk 0:02:56.8]} 7... Bg7 {[%clk 0:03:00.4]} 8. Bg5 {[%clk 0:02:56.8]}
8... Nf6 {[%clk 0:02:50.5]} 9. Bxc6 {[%clk 0:02:41.5]} 9... Bxc6 {[%clk
0:02:50.4]} 10. dxe5 {[%clk 0:02:42.2]} 10... dxe5 {[%clk 0:02:49.6]} 11. Nxe5
{[%clk 0:02:36.7]} 11... Qxd1 {[%clk 0:02:42.7]} 12. Rxd1 {[%clk 0:02:36.4]}
12... Nxe4 {[%clk 0:02:28.3]} 13. Nxc6 {[%clk 0:02:14.1]} 13... Nxg5 {[%clk
0:02:21.5]} 14. Na5 {[%clk 0:02:11.4]} 14... Rb8 {[%clk 0:01:59.6]} 15. Re1+
{[%clk 0:02:06.6]} 15... Ne6 {[%clk 0:01:54.9]} 16. Nd2 {[%clk 0:02:02.7]} 16...
O-O {[%clk 0:01:43.5]} 17. Ndc4 {[%clk 0:02:02.8]} 17... Rfd8 {[%clk 0:01:32.4]}
18. Rad1 {[%clk 0:02:01.9]} 18... Kf8 {[%clk 0:01:19.7]} 19. Rxd8+ {[%clk
0:01:59]} 19... Nxd8 {[%clk 0:01:19.8]} 20. f4 {[%clk 0:01:44.1]} 20... b6
{[%clk 0:01:18.5]} 21. Nb3 {[%clk 0:01:43.9]} 21... Ne6 {[%clk 0:01:14.5]} 22.
g3 {[%clk 0:01:43.8]} 22... Rd8 {[%clk 0:01:10.7]} 23. Kf2 {[%clk 0:01:43.3]}
23... Bf6 {[%clk 0:01:01.6]} 24. Kf3 {[%clk 0:01:39.2]} 24... h5 {[%clk
0:01:01.4]} 25. Ne3 {[%clk 0:01:27.3]} 25... c6 {[%clk 0:00:52.9]} 26. h3 {[%clk
0:01:24.4]} 26... a5 {[%clk 0:00:51.6]} 27. a4 {[%clk 0:01:20.6]} 27... Rd3
{[%clk 0:00:42.5]} 28. Ke4 {[%clk 0:01:11]} 28... Rd7 {[%clk 0:00:40.6]} 29. Nc4
{[%clk 0:01:06.2]} 29... Bd8 {[%clk 0:00:40.3]} 30. Ne5 {[%clk 0:01:02.6]} 30...
Rd6 {[%clk 0:00:34.8]} 31. Re2 {[%clk 0:00:56.7]} 31... Kg7 {[%clk 0:00:30.1]}
32. g4 {[%clk 0:00:53.3]} 32... hxg4 {[%clk 0:00:21.1]} 33. hxg4 {[%clk
0:00:54.2]} 33... g5 {[%clk 0:00:20.5]} 34. f5 {[%clk 0:00:46.9]} 34... Nf4
{[%clk 0:00:20.8]} 35. Rd2 {[%clk 0:00:44.8]} 35... Rxd2 {[%clk 0:00:16.8]} 36.
Nxd2 {[%clk 0:00:45.7]} 36... c5 {[%clk 0:00:15.6]} 37. Ndc4 {[%clk 0:00:44.1]}
37... Ne2 {[%clk 0:00:11.8]} 38. Nd7 {[%clk 0:00:39.8]} 38... Nc1 {[%clk
0:00:09.3]} 39. Ndxb6 {[%clk 0:00:38.2]} 39... Kf6 {[%clk 0:00:09.4]} 40. Nd7+
{[%clk 0:00:34.6]} 40... Ke7 {[%clk 0:00:09.8]} 41. Nxc5 {[%clk 0:00:35]} 41...
Bc7 {[%clk 0:00:07]} 42. b4 {[%clk 0:00:31.8]} 42... Na2 {[%clk 0:00:05.8]} 43.
bxa5 {[%clk 0:00:25.9]} 43... Nxc3+ {[%clk 0:00:06.1]} 44. Kd4 {[%clk
0:00:20.1]} 44... Ne2+ {[%clk 0:00:06.6]} 45. Ke3 {[%clk 0:00:20]} 45... Nc3
{[%clk 0:00:06.8]} 46. a6 {[%clk 0:00:20.3]} 46... Nd5+ {[%clk 0:00:06.7]} 47.
Kd4 {[%clk 0:00:18.9]} 47... Nb6 {[%clk 0:00:06.5]} 48. Nxb6 {[%clk 0:00:17.1]}
48... Bxb6 {[%clk 0:00:07.4]} 49. Kd5 {[%clk 0:00:17.5]} 49... Ba7 {[%clk
0:00:05.7]} 50. Kc6 {[%clk 0:00:16.8]} 50... Kf6 {[%clk 0:00:05.7]} 51. Nd3
{[%clk 0:00:15.2]} 1-0